bitfinex-derivatives/quotes_SOLF0:USTF0_20250523
["timestamp","ask_amount","ask_price","bid_price","bid_amount"]
[1748009865039,6.83162359,180.31,180.25,5.5462]
[1748009865231,6.83162359,180.31,180.26,105.4]
[1748009865428,6.83162359,180.31,180.27,105.43528385]
[1748009865623,0.03823568,180.3,180.27,239.24]
[1748009865825,0.03823568,180.3,180.27,239.27751214]
[1748009866228,0.03823568,180.3,180.28,5.545]
[1748009866429,0.03823568,180.3,180.27,239.27751214]
[1748009867236,0.03823568,180.3,180.28,5.5449]
[1748009867441,0.03823568,180.3,180.27,239.27751214]
[1748009867644,0.03823568,180.3,180.27,301.27751214]
[1748009867931,0.03823568,180.3,180.29,5.5449]
[1748009868230,0.03823568,180.3,180.28,1.8911]
[1748009868437,0.03823568,180.3,180.27,244.82301214]
[1748009868631,0.03823568,180.3,180.27,239.27751214]
[1748009869542,0.03823568,180.3,180.28,105.4]
[1748009870041,5.58313568,180.3,180.28,105.4]
[1748009870241,0.03823568,180.3,180.28,105.4]
[1748009870842,5.5449,180.29,180.27,0.03751214]
[1748009871344,0.03823568,180.3,180.27,0.03751214]
[1748009871937,5.5452,180.28,180.27,0.03751214]
[1748009872936,0.03823568,180.3,180.27,0.03751214]
[1748009873446,0.03823568,180.3,180.27,5.58301214]
[1748009873647,5.58303568,180.3,180.27,0.03751214]
[1748009873847,0.03823568,180.3,180.27,0.03751214]
[1748009874848,5.545,180.29,180.27,0.03751214]
[1748009875146,0.03823568,180.3,180.27,0.03751214]
[1748009875554,5.58303568,180.3,180.27,0.03751214]
[1748009876251,0.03823568,180.3,180.27,0.03751214]
[1748009876752,5.5452,180.29,180.27,0.03751214]
[1748009877141,0.03823568,180.3,180.27,0.03751214]
[1748009877351,5.58313568,180.3,180.27,0.03751214]
[1748009877552,0.03823568,180.3,180.27,0.03751214]
[1748009877738,5.5452,180.28,180.27,0.03751214]
[1748009881053,5.545,180.29,180.27,0.03751214]
[1748009881253,0.03823568,180.3,180.27,0.03751214]
[1748009881754,5.5449,180.29,180.27,0.03751214]
[1748009882064,0.03823568,180.3,180.27,0.03751214]
[1748009882759,5.5449,180.29,180.27,0.03751214]
[1748009883053,0.03823568,180.3,180.27,0.03751214]
[1748009883256,5.5452,180.29,180.27,0.03751214]
[1748009883459,0.03823568,180.3,180.27,0.03751214]
[1748009883956,5.5452,180.28,180.27,0.03751214]
[1748009884669,0.03823568,180.3,180.27,0.03751214]
[1748009885162,6.83162359,180.36,180.27,0.03751214]
[1748009885665,6.83162359,180.36,180.27,1.86771214]
[1748009885862,6.83162359,180.36,180.28,105.36]
[1748009886166,0.03984964,180.34,180.27,105.39751214]
[1748009887865,12.33728883,180.32,180.21,4.95875331]
[1748009888257,14.18639948,180.28,180.21,4.95875331]
[1748009888460,133.36,180.27,180.21,4.95875331]
[1748009888864,0.03758198,180.26,180.24,5.5462]
[1748009889062,0.04130408,180.27,180.24,5.5462]
[1748009889268,0.04130408,180.27,180.23,0.04124475]
[1748009889463,0.04130408,180.27,180.24,5.5464]
[1748009889957,0.04130408,180.27,180.23,0.04124475]
[1748009890567,0.04130408,180.27,180.26,5.5458]
[1748009890868,0.04130408,180.27,180.26,110.9058]
[1748009891472,0.04130408,180.27,180.26,105.36]
[1748009892366,0.04130408,180.27,180.23,0.04124475]
[1748009892573,0.04130408,180.27,180.24,105.36]
[1748009893473,5.5461,180.26,180.24,105.36]
[1748009893776,0.04130408,180.27,180.24,105.36]
[1748009894569,0.04130408,180.27,180.23,0.04124475]
[1748009895979,5.58700408,180.27,180.23,5.58794475]
[1748009896475,5.5459,180.26,180.23,0.04124475]
[1748009896773,0.04130408,180.27,180.23,0.04124475]
[1748009897664,5.5464,180.25,180.23,0.04124475]
[1748009897866,0.04130408,180.27,180.23,0.04124475]
[1748009900874,5.5461,180.26,180.23,0.04124475]
[1748009901275,0.04130408,180.27,180.23,0.04124475]
[1748009903469,171.0,180.26,180.15,133.38]
[1748009903766,171.0,180.25,180.16,105.38]
[1748009903968,304.38,180.24,180.11,1.8667]
[1748009904170,320.45669948,180.24,180.1,6.69012319]
[1748009904370,14.18639948,180.16,180.1,6.69012319]
[1748009904577,133.38,180.15,180.1,6.69012319]
[1748009904773,135.3479,180.15,180.1,6.69012319]
[1748009904963,14.18639948,180.12,180.06,105.38]
[1748009905167,5.5517,180.07,180.06,105.38]
[1748009905373,133.4,180.09,180.06,105.38]
[1748009905671,133.43765174,180.09,180.06,105.4154254]
[1748009906463,0.03765174,180.09,180.06,105.4154254]
[1748009906874,5.5492,180.16,180.11,5.5502]
[1748009907070,619.47162359,180.17,180.07,1.9959]
[1748009907268,619.47162359,180.17,180.07,105.38]
[1748009907471,14.18639948,180.15,180.07,110.9315]
[1748009907772,14.18639948,180.15,180.07,105.38]
[1748009907981,0.03597985,180.13,180.09,0.04211432]
[1748009908279,133.4,180.12,180.09,0.04211432]
[1748009908478,5.5508,180.1,180.09,0.04211432]
[1748009908976,0.03597985,180.13,180.11,5.5503]
[1748009909177,0.03597985,180.13,180.09,0.04211432]
[1748009910381,0.03597985,180.13,180.09,105.46211432]
[1748009910579,5.58607985,180.13,180.09,105.46211432]
[1748009910875,0.03597985,180.13,180.09,105.46211432]
[1748009911682,0.03597985,180.13,180.1,5.5505]
[1748009911879,0.03597985,180.13,180.09,105.46211432]
[1748009912075,0.03597985,180.13,180.09,238.44211432]
[1748009912379,132.98,180.2,180.1,1.933]
[1748009912573,132.98,180.2,180.1,5.7]
[1748009912976,132.98,180.2,180.1,1.933]
[1748009913173,0.04050461,180.17,180.13,0.03892232]
[1748009913375,0.04050461,180.17,179.92,11.1123]
[1748009913571,0.04050461,180.17,179.85,16.6746]
[1748009913572,14.18896417,180.1,179.89,147.16896417]
[1748009913780,14.20454516,180.08,179.9,118.4687449]
[1748009913978,147.18454516,180.08,179.9,118.4687449]
[1748009914472,0.0377882,180.01,179.98,5.5542]
[1748009914676,0.0377882,180.01,179.98,105.45667396]
[1748009914677,0.04149437,180.01,179.98,105.45667396]
[1748009915069,0.04149437,180.01,180.0,5.5538]
[1748009915781,0.04149437,180.01,180.0,138.5338]
[1748009917578,0.04149437,180.01,180.0,243.9538]
[1748009919484,0.04149437,180.01,180.0,238.4]
[1748009920480,0.04149437,180.01,180.0,243.9538]
[1748009920681,132.98,180.08,180.0,238.4]
[1748009920891,171.0,180.11,180.0,238.4]
[1748009921183,171.0,180.11,180.03,5.5528]
[1748009921184,5.5514,180.08,180.03,5.5528]
[1748009921387,5.5514,180.08,180.0,238.4]
[1748009921583,171.0,180.11,180.0,238.4]
[1748009921786,0.03603629,180.07,180.04,0.03811532]
[1748009922890,0.03603629,180.07,180.04,5.59071532]
[1748009923089,0.03603629,180.07,180.04,0.03811532]
[1748009923993,0.03603629,180.07,180.04,5.59071532]
[1748009924191,0.03603629,180.07,180.04,0.03811532]
[1748009924492,5.58793629,180.07,180.04,0.03811532]
[1748009924894,0.03603629,180.07,180.04,0.03811532]
[1748009925098,5.5523,180.05,180.04,0.03811532]
[1748009928993,171.0,180.04,179.91,133.02]
[1748009929294,14.20454516,180.02,179.91,133.02]
[1748009929500,5.556,179.93,179.92,105.48]
[1748009930896,5.5563,179.92,179.91,0.0406682]
[1748009932708,5.5575,179.88,179.87,105.48]
[1748009932906,14.20454516,179.94,179.83,133.04]
[1748009933298,14.20454516,179.94,179.84,105.52]
[1748009933496,14.20454516,179.94,179.84,111.0785]
[1748009933802,0.03920216,179.91,179.87,0.03651921]
[1748009934198,5.5575,179.88,179.87,0.03651921]
[1748009935599,5.5569,179.9,179.87,5.59441921]
[1748009935797,0.03920216,179.91,179.87,0.03651921]
[1748009936105,1.9349,180.0,179.87,0.03651921]
[1748009936298,133.12,180.01,179.87,1.9568]
[1748009936604,139.95162359,180.05,179.87,481.8768]
[1748009936805,5.5535,180.01,179.87,481.8768]
[1748009937197,0.03558941,179.96,179.92,0.03538599]
[1748009937398,0.03559372,179.96,179.93,238.66]
[1748009937594,139.95162359,180.05,179.93,240.6717]
[1748009937800,133.12,180.05,179.93,240.6717]
[1748009938305,5.5536,180.01,179.97,5.5546]
[1748009938607,5.5536,180.01,179.93,240.6717]
[1748009938800,5.59460452,180.01,179.98,5.5544]
[1748009939006,0.04100452,180.01,179.98,5.5544]
[1748009939208,0.04100452,180.01,179.97,0.03505546]
[1748009941306,5.5545,179.98,179.97,0.03505546]
[1748009942100,156.12277614,180.0,179.89,105.54]
[1748009942304,23.38277614,179.96,179.87,134.6968]
[1748009942502,23.38277614,179.96,179.87,240.2368]
[1748009942705,5.5567,179.91,179.87,238.28]
[1748009942910,23.38277614,179.96,179.8,3.8669]
[1748009943107,5.5602,179.8,179.78,6.73316878]
[1748009943305,132.78015059,179.81,179.78,6.73316878]
[1748009943508,0.04008606,179.81,179.78,6.77057867]
[1748009943903,0.04008606,179.81,179.78,0.03740989]
[1748009944402,0.04008606,179.81,179.78,5.59790989]
[1748009945114,0.04008606,179.81,179.78,0.03740989]
[1748009945815,0.04008606,179.81,179.79,5.5601]
[1748009946014,0.04008606,179.81,179.78,0.03740989]
[1748009946319,5.5603,179.8,179.78,0.03740989]
[1748009946719,0.04008606,179.81,179.78,0.03740989]
[1748009947421,5.56,179.8,179.78,0.03740989]
[1748009947804,0.04008606,179.81,179.78,0.03740989]
[1748009948123,132.8,179.92,179.78,0.03740989]
[1748009948315,23.44377762,179.96,179.76,132.8]
[1748009948522,654.86,179.97,179.77,23.44377762]
[1748009948523,132.8,179.95,179.77,23.44377762]
[1748009949021,483.86,179.97,179.9,5.5567]
[1748009949313,483.86,179.97,179.92,0.03545745]
[1748009949314,0.03613992,179.95,179.92,0.03545745]
[1748009949519,0.04257346,179.95,179.87,105.6]
[1748009949713,0.04257346,179.95,179.92,0.03638621]
[1748009951215,0.04257346,179.95,179.92,5.59258621]
[1748009951517,0.04257346,179.95,179.92,0.03638621]
[1748009953220,5.556,179.93,179.92,0.03638621]
[1748009953426,132.78,179.94,179.86,105.6]
[1748009954521,0.0404098,179.92,179.88,0.03741363]
[1748009955026,5.5569,179.91,179.88,0.03741363]
[1748009955320,0.0404098,179.92,179.88,0.03741363]
[1748009955708,5.5569,179.91,179.88,0.03741363]
[1748009955912,0.0404098,179.92,179.88,0.03741363]
[1748009956827,5.5572,179.9,179.88,0.03741363]
[1748009957023,0.0404098,179.92,179.88,0.03741363]
[1748009958328,5.5970098,179.92,179.88,0.03741363]
[1748009958531,0.0404098,179.92,179.88,0.03741363]
[1748009959221,171.0,180.01,179.89,132.78]
[1748009959422,132.78,180.03,179.9,4.003]
[1748009960220,0.04153591,179.98,179.95,0.03773209]
[1748009960417,0.04153591,179.98,179.95,105.61773209]
[1748009961516,0.04153591,179.98,179.96,105.58]
[1748009961924,0.04153591,179.98,179.97,5.5548]
[1748009962726,0.04153591,179.98,179.96,105.58]
[1748009962922,0.04153591,179.98,179.95,0.03773209]
[1748009964429,0.04153591,179.98,179.97,5.5548]
[1748009965324,5.5527,180.04,179.95,1.92423209]
[1748009965524,5.5527,180.04,180.0,5.5536]
[1748009965730,5.5524,180.05,179.97,132.76]
[1748009966028,171.0,180.06,179.97,132.76]
[1748009966326,171.0,180.1,179.97,132.76]
[1748009966520,0.04012086,180.03,180.0,0.03985206]
[1748009966720,171.0,180.1,180.01,105.56]
[1748009966917,0.03822447,180.07,180.04,0.0393243]
[1748009967728,0.03822447,180.07,180.04,5.5918243]
[1748009968030,0.03822447,180.07,180.04,0.0393243]
[1748009968425,0.03822447,180.07,179.95,1.8865]
[1748009968723,23.44377762,180.04,179.91,2.0303]
[1748009968923,156.16377762,180.04,179.91,107.5703]
[1748009969225,1.9318,180.03,179.93,5.5559]
[1748009969429,0.03941924,180.0,179.96,0.03924644]
[1748009969723,5.5548,179.97,179.96,0.03924644]
[1748009972332,0.03941924,180.0,179.96,0.03924644]
[1748009975232,0.03941924,180.0,179.97,5.5545]
[1748009975537,0.03941924,180.0,179.96,0.03924644]
[1748009976542,0.03941924,180.0,179.96,5.59414644]
[1748009976742,0.03941924,180.0,179.96,0.03924644]
[1748009977634,0.03941924,180.0,179.98,5.5542]
[1748009977839,0.03941924,180.0,179.97,105.54]
[1748009978241,0.03941924,180.0,179.97,111.0944]
[1748009978740,0.03941924,180.0,179.98,5.5544]
[1748009979241,0.03941924,180.0,179.97,105.54]
[1748009979437,0.03941924,180.0,179.99,5.5541]
[1748009980041,132.36,180.08,180.01,5.5534]
[1748009980440,5.5524,180.05,179.97,107.5244]
[1748009980641,132.36,180.08,180.02,5.5532]
[1748009980837,132.36,180.08,180.0,132.36]
[1748009981040,0.03677291,180.06,180.02,0.04051931]
[1748009981540,0.03677291,180.06,180.05,5.5523]
[1748009981936,0.03677291,180.06,180.04,105.54]
[1748009984245,5.5523,180.05,180.04,105.54]
[1748009984435,0.03677291,180.06,180.04,105.54]
[1748009985445,5.58907291,180.06,180.04,105.54]
[1748009985942,5.58887291,180.06,180.04,105.54]
[1748009986145,0.03677291,180.06,180.04,105.54]
[1748009986349,5.5523,180.05,180.04,105.54]
[1748009986641,0.03677291,180.06,180.02,0.04051931]
[1748009986841,5.5529,180.03,180.02,0.04051931]
[1748009987447,5.5526,180.04,180.02,0.04051931]
[1748009987649,0.03677291,180.06,180.02,0.04051931]
[1748009988042,14.19804559,180.04,179.92,132.34]
[1748009988249,134.2363,180.03,179.92,237.86]
[1748009988443,5.5551,179.96,179.92,243.4161]
[1748009988639,5.5551,179.96,179.92,132.34]
[1748009988840,134.2363,180.03,179.92,132.34]
[1748009989051,134.2363,180.03,179.91,111.0764]
[1748009989052,5.5556,179.95,179.91,111.0764]
[1748009989249,5.59331668,179.95,179.91,105.55891234]
[1748009990043,5.59331668,179.95,179.91,111.11541234]
[1748009990249,5.59331668,179.95,179.91,0.03891234]
[1748009990250,0.03771668,179.95,179.91,0.03891234]
[1748009990449,0.03771668,179.95,179.87,105.52]
[1748009990654,5.558,179.87,179.81,1.9571]
[1748009990950,132.34,179.91,179.8,105.52]
[1748009991149,146.53804559,179.93,179.81,105.52]
[1748009991651,0.03671316,179.89,179.85,0.0364465]
[1748009992254,5.5581,179.87,179.85,0.0364465]
[1748009992641,0.03671316,179.89,179.85,0.0364465]
[1748009993957,5.59421316,179.89,179.85,5.5948465]
[1748009994149,0.03671316,179.89,179.85,0.0364465]
[1748009994550,0.03671316,179.89,179.86,5.5581]
[1748009995449,0.03671316,179.89,179.85,0.0364465]
[1748009996052,5.5576,179.88,179.85,0.0364465]
[1748009996256,0.03671316,179.89,179.85,0.0364465]
[1748009997055,5.5582,179.86,179.85,0.0364465]
[1748009998051,136.0962,179.88,179.79,132.34]
[1748009998354,136.0962,179.88,179.78,5.07898356]
[1748009998657,5.5598,179.81,179.78,5.07898356]
[1748009999054,5.59890338,179.81,179.78,5.11705217]
[1748009999453,0.03910338,179.81,179.78,5.11705217]
[1748010001845,0.03910338,179.81,179.8,5.56]
[1748010002658,0.03910338,179.81,179.78,0.03806861]
[1748010003262,0.03910338,179.81,179.8,5.56]
[1748010003959,0.03910338,179.81,179.79,5.5602]
[1748010004160,0.03910338,179.81,179.78,0.03806861]
[1748010005463,0.03910338,179.81,179.8,5.56]
[1748010005860,0.03910338,179.81,179.78,0.03806861]
[1748010007063,0.03910338,179.81,179.79,5.5601]
[1748010007268,0.03910338,179.81,179.78,0.03806861]
[1748010007659,5.59900338,179.81,179.78,0.03806861]
[1748010007967,0.03910338,179.81,179.78,0.03806861]
[1748010008165,5.5602,179.8,179.78,0.03806861]
[1748010008360,0.03910338,179.81,179.78,0.03806861]
[1748010008758,23.4250917,179.8,179.71,137.6425]
[1748010008959,132.08,179.79,179.71,243.2625]
[1748010009161,132.08,179.79,179.72,5.5624]
[1748010009460,132.08,179.79,179.71,105.62]
[1748010009660,5.5613,179.76,179.73,0.037192]
[1748010009860,0.03628776,179.77,179.73,0.037192]
[1748010010260,0.03628776,179.77,179.76,5.5612]
[1748010011774,0.03628776,179.77,179.75,5.5615]
[1748010011968,0.03628776,179.77,179.74,1.9995]
[1748010012169,0.03628776,179.77,179.73,1.897992]
[1748010012677,5.59728776,179.77,179.73,5.599292]
[1748010012975,5.5613,179.76,179.73,0.037192]
[1748010013173,0.03628776,179.77,179.73,0.037192]
[1748010013578,0.03628776,179.77,179.74,5.5618]
[1748010014480,5.59728776,179.77,179.74,5.5618]
[1748010014978,5.5613,179.76,179.73,0.037192]
[1748010015277,0.03628776,179.77,179.73,0.037192]
[1748010015984,0.03628776,179.77,179.75,5.5614]
[1748010016280,0.03628776,179.77,179.73,0.037192]
[1748010016480,5.59738776,179.77,179.73,5.599292]
[1748010016682,0.03628776,179.77,179.73,0.037192]
[1748010017187,0.03628776,179.77,179.74,5.5617]
[1748010018786,0.03628776,179.77,179.73,0.037192]
[1748010018987,0.03628776,179.77,179.74,132.12]
[1748010019181,5.5597,179.81,179.78,5.5605]
[1748010019388,171.0,179.82,179.78,111.2205]
[1748010019786,176.5596,179.82,179.78,111.2205]
[1748010019991,171.0,179.82,179.79,5.5603]
[1748010020192,171.03879636,179.82,179.79,5.60285895]
[1748010020481,171.03879636,179.82,179.79,0.04255895]
[1748010020687,5.56,179.8,179.79,0.04255895]
[1748010021892,5.5612,179.77,179.74,105.66]
[1748010022590,171.0,179.82,179.74,105.66]
[1748010022782,132.1,179.83,179.74,105.66]
[1748010022982,0.0381434,179.8,179.76,0.03599351]
[1748010023584,14.24217347,179.78,179.68,1.9566]
[1748010023780,132.12,179.77,179.69,105.66]
[1748010024697,5.5623,179.73,179.71,0.04185467]
[1748010024991,0.04034123,179.75,179.71,0.04185467]
[1748010025189,0.04034123,179.75,179.73,5.5619]
[1748010025384,0.04034123,179.75,179.71,0.04185467]
[1748010026098,0.04034123,179.75,179.74,5.5619]
[1748010027998,19.38225023,179.91,179.74,137.68]
[1748010028296,5.5577,179.88,179.75,1.8781]
[1748010028495,132.12,179.9,179.85,5.5582]
[1748010028688,5.14007676,179.91,179.86,105.66]
[1748010028887,0.03915997,179.9,179.87,105.69970926]
[1748010029089,0.03915997,179.9,179.89,5.5572]
[1748010029299,5.7564,179.99,179.88,132.12]
[1748010029300,5.14007676,179.96,179.88,132.12]
[1748010029996,5.5554,179.95,179.88,132.12]
[1748010030297,5.14007676,179.96,179.88,132.12]
[1748010030599,0.03775255,179.93,179.92,5.5563]
[1748010030796,5.14007676,179.96,179.9,0.03551627]
[1748010031393,5.14007676,179.96,179.91,105.66]
[1748010031697,5.14007676,179.96,179.9,0.03551627]
[1748010031896,0.03870181,179.95,179.91,105.64]
[1748010032501,0.03870181,179.95,179.91,111.1963]
[1748010032999,5.59410181,179.95,179.91,111.1963]
[1748010033195,0.03870181,179.95,179.91,105.64]
[1748010033687,0.03870181,179.95,179.91,111.1964]
[1748010033891,0.03870181,179.95,179.91,105.64]
[1748010034093,0.03870181,179.95,179.9,0.03551627]
[1748010034297,0.03870181,179.95,179.91,105.64]
[1748010035298,5.556,179.94,179.91,105.64]
[1748010035695,0.03870181,179.95,179.91,105.64]
[1748010037205,0.03870181,179.95,179.93,5.5559]
[1748010037397,0.03870181,179.95,179.91,105.64]
[1748010037699,0.03870181,179.95,179.91,111.1965]
[1748010037899,0.03870181,179.95,179.91,105.64]
[1748010038399,0.03870181,179.95,179.9,0.03551627]
[1748010040397,0.03870181,179.95,179.92,5.5563]
[1748010040703,0.03870181,179.95,179.9,0.03551627]
[1748010040901,0.03870181,179.95,179.94,5.5557]
[1748010041302,0.03870181,179.95,179.9,0.03551627]
[1748010041495,0.03870181,179.95,179.93,5.5559]
[1748010041695,0.03870181,179.95,179.9,0.03551627]
[1748010042002,0.03870181,179.95,179.93,5.5558]
[1748010042203,5.553,180.03,179.94,237.22]
[1748010042405,131.62,180.05,179.95,1.9141]
[1748010042604,131.62,180.05,179.95,3.8528]
[1748010042804,5.5529,180.03,179.95,3.8528]
[1748010043005,131.62,180.05,179.95,3.8528]
[1748010043198,0.03635333,180.02,179.98,0.03547543]
[1748010044304,5.5537,180.01,179.98,0.03547543]
[1748010045001,0.03635333,180.02,179.98,0.03547543]
[1748010045505,5.5541,179.99,179.98,0.03547543]
[1748010045898,131.6,179.99,179.89,1.9387]
[1748010046102,145.84217347,179.99,179.81,14.24217347]
[1748010046404,1.8324,179.98,179.84,237.18]
[1748010047005,5.59811316,179.93,179.9,5.5569]
[1748010047200,5.59811316,179.93,179.89,0.04142713]
[1748010047703,5.5566,179.92,179.89,0.04142713]
[1748010048100,0.04211316,179.93,179.92,5.5563]
[1748010048307,0.04211316,179.93,179.92,111.1363]
[1748010048906,782.72,180.02,179.92,105.58]
[1748010049101,131.58,180.02,179.92,105.58]
[1748010050106,0.04209677,179.99,179.95,5.59806727]
[1748010050298,0.04209677,179.99,179.95,0.04276727]
[1748010050992,14.24217347,179.98,179.85,3.7897]
[1748010051199,14.24217347,179.94,179.82,133.4514]
[1748010051403,14.24217347,179.94,179.82,131.58]
[1748010052103,5.59319163,179.9,179.86,5.59841964]
[1748010052305,0.03609163,179.9,179.86,0.04051964]
[1748010052804,0.03609163,179.9,179.88,5.5575]
[1748010053002,0.03609163,179.9,179.86,0.04051964]
[1748010053197,0.03609163,179.9,179.87,131.58]
[1748010053398,0.03609163,179.9,179.89,5.5572]
[1748010054007,0.03609163,179.9,179.87,131.58]
[1748010054507,0.03609163,179.9,179.86,0.04051964]
[1748010054906,0.03609163,179.9,179.89,5.5572]
[1748010056004,0.03609163,179.9,179.86,0.04051964]
[1748010057103,0.03609163,179.9,179.89,5.5572]
[1748010057707,1.9948,179.97,179.95,5.5552]
[1748010058008,138.43162359,180.02,179.92,105.58]
[1748010058309,6.83162359,180.02,180.01,5.5535]
[1748010058513,3.78602359,180.02,180.01,111.1335]
[1748010058706,10.29706209,180.05,180.04,5.5526]
[1748010059108,10.29706209,180.05,180.0,1.97807422]
[1748010059307,10.29706209,180.05,180.01,5.5535]
[1748010059504,10.29706209,180.05,180.0,0.03857422]
[1748010059505,0.04180226,180.06,180.0,0.03857422]
[1748010060612,131.6,180.05,180.0,0.03857422]
[1748010060814,1.9677,180.04,180.0,0.03857422]
[1748010061009,14.24217347,180.03,179.94,105.58]
[1748010061214,5.5543,179.99,179.91,1.9395]
[1748010061416,1.987,180.02,179.91,239.0995]
[1748010061810,1.9677,180.04,180.01,5.5532]
[1748010062012,1.9677,180.04,179.96,131.18]
[1748010062214,2.00718291,180.04,180.01,0.03848771]
[1748010062414,2.00939645,180.04,180.01,0.03603921]
[1748010063309,14.24217347,180.02,179.8,5.07898356]
[1748010063520,14.24217347,179.98,179.89,5.5572]
[1748010063709,145.42217347,179.98,179.88,236.74]
[1748010063907,14.24217347,179.94,179.88,105.56]
[1748010064117,1.9484,179.93,179.84,1.9543]
[1748010064319,0.03767663,179.9,179.87,0.04167205]
[1748010064616,5.59477663,179.9,179.87,0.04167205]
[1748010065020,5.5575,179.88,179.87,0.04167205]
[1748010065420,0.03767663,179.9,179.87,0.04167205]
[1748010067010,5.5575,179.88,179.87,0.04167205]
[1748010067419,0.03767663,179.9,179.82,131.18]
[1748010067612,5.5591,179.83,179.82,131.18]
[1748010067818,5.5591,179.83,179.79,2.0012]
[1748010068023,131.18,179.88,179.79,2.0012]
[1748010068510,0.04064302,179.85,179.82,0.03806425]
[1748010069820,23.4162113,179.83,179.74,133.0162]
[1748010070216,154.6162113,179.83,179.75,5.5614]
[1748010070623,154.6162113,179.83,179.74,133.0162]
[1748010070819,5.5607,179.78,179.77,0.03807498]
[1748010071132,5.5607,179.78,179.6,16.6978]
[1748010071133,131.2,179.78,179.68,480.04]
[1748010071314,131.2,179.78,179.67,131.2]
[1748010071519,131.2,179.78,179.66,110.65898356]
[1748010071719,23.4162113,179.75,179.66,5.07898356]
[1748010071932,131.2,179.78,179.69,0.04130484]
[1748010071933,5.5631,179.7,179.69,0.04130484]
[1748010072220,154.6162113,179.71,179.66,5.07898356]
[1748010072527,156.4717113,179.71,179.66,5.07898356]
[1748010072826,133.0555,179.71,179.66,5.07898356]
[1748010073025,131.2,179.71,179.67,0.03605729]
[1748010073722,5.5632,179.7,179.67,0.03605729]
[1748010073928,154.6162113,179.71,179.67,0.03605729]
[1748010075427,154.6162113,179.71,179.62,5.5655]
[1748010075621,5.5639,179.68,179.6,105.62]
[1748010075820,154.6162113,179.71,179.62,5.5655]
[1748010076425,0.03930117,179.68,179.65,0.0396841]
[1748010078527,154.6962113,179.77,179.65,0.0396841]
[1748010078731,136.841,179.77,179.71,5.5626]
[1748010079027,131.28,179.77,179.65,3.9832]
[1748010079225,5.5613,179.76,179.65,3.9832]
[1748010079430,131.28,179.77,179.65,3.9832]
[1748010079630,0.03793549,179.73,179.69,0.04219629]
[1748010079829,0.03793549,179.73,179.69,5.60539629]
[1748010080040,0.03793549,179.73,179.69,0.04219629]
[1748010082229,5.5628,179.71,179.69,0.04219629]
[1748010082431,0.03793549,179.73,179.69,0.04219629]
[1748010082631,5.5631,179.7,179.69,0.04219629]
[1748010083128,131.32,179.72,179.61,131.32]
[1748010083332,131.32,179.72,179.61,237.0]
[1748010083631,1.9585,179.71,179.61,131.32]
[1748010083831,5.5647,179.65,179.61,131.32]
[1748010084031,5.5647,179.65,179.54,1.8378]
[1748010084032,23.4162113,179.69,179.56,131.32]
[1748010084224,0.04109452,179.64,179.61,0.03520738]
[1748010085127,5.60609452,179.64,179.61,0.03520738]
[1748010085432,0.04109452,179.64,179.61,0.03520738]
[1748010085634,0.04109452,179.64,179.61,5.60090738]
[1748010086134,0.04109452,179.64,179.61,0.03520738]
[1748010086939,0.04109452,179.64,179.61,5.60100738]
[1748010087234,0.04109452,179.64,179.61,0.03520738]
[1748010088727,5.5656,179.62,179.61,0.03520738]
[1748010089234,0.04109452,179.64,179.61,0.03520738]
[1748010090030,5.5666,179.59,179.52,131.36]
[1748010090234,131.36,179.61,179.53,105.72]
[1748010090432,5.568,179.55,179.51,5.569]
[1748010090632,23.4162113,179.59,179.49,586.3]
[1748010090938,0.03990475,179.56,179.52,0.04212373]
[1748010091736,0.03990475,179.56,179.52,5.61052373]
[1748010092038,0.03990475,179.56,179.52,0.04212373]
[1748010092232,5.5683,179.54,179.52,0.04212373]
[1748010092433,0.03990475,179.56,179.52,0.04212373]
[1748010092940,131.05990475,179.56,179.52,0.04212373]
[1748010093335,23.4162113,179.55,179.44,1.9353]
[1748010093532,131.02,179.56,179.44,1.9353]
[1748010093937,5.5682,179.54,179.44,1.9353]
[1748010094138,131.02,179.56,179.44,1.9353]
[1748010094339,0.04083548,179.52,179.49,5.5696]
[1748010094642,0.04083548,179.52,179.48,0.04116443]
[1748010095546,0.04083548,179.52,179.5,5.5691]